[Event "12th KIIT International 2019"]
[Site "Odisha"]
[Date "2019.06.07"]
[Round "10.3"]
[White "Ter-Sahakyan, Samvel"]
[Black "Nguyen, Van Huy"]
[Result "1-0"]
[ECO "B12"]
[WhiteElo "2611"]
[BlackElo "2456"]
[Annotator "ChessBase"]
[PlyCount "85"]
[EventDate "2019.05.31"]
[EventType "swiss"]
[EventCountry "IND"]
[SourceTitle "playchess.com"]
[Source "ChessBase"]
[SourceQuality "1"]
[TimeControl "5400+30"]

1. e4 {[%emt 0:00:00]} c6 {[%emt 0:00:00]} 2. d4 {[%emt 0:00:00]} d5 {[%emt 0:00:08]} 3. e5 {[%emt 0:00:12]} Bf5 {[%emt 0:00:16]} 4. Nf3 {[%emt 0:00:25]} e6 {[%emt 0:00:39]} 5. Be2 {[%emt 0:00:09]} Nd7 {[%emt 0:00:56]} 6. O-O {[%emt 0:05:01]} Ne7 {[%emt 0:00:58]} 7. c3 {[%emt 0:06:19]} Nc8 {[%emt 0:03:05]} 8. Nbd2 {[%emt 0:06:45]} Be7 {[%emt 0:00:56]} 9. Re1 {[%emt 0:01:11]} O-O {[%emt 0:03:37]} 10. Nf1 {[%emt 0:00:30]} c5 {[%emt 0:04:38]} 11. Ng3 {[%emt 0:02:58]} Bg6 {[%emt 0:01:14]} 12. Bd3 {[%emt 0:01:21]} c4 {[%emt 0:07:54]} 13. Bc2 {[%emt 0:06:57]} b5 {[%emt 0:02:00]} 14. Ne2 {[%emt 0:01:01]} Re8 {[%emt 0:09:06]} 15. Nf4 {[%emt 0:09:59]} Nf8 {[%emt 0:01:07]} 16. Nxg6 {[%emt 0:01:13]} fxg6 {[%emt 0:00:35]} 17. g3 {[%emt 0:01:50]} a5 {[%emt 0:02:33]} 18. h4 {[%emt 0:04:30]} Nb6 {[%emt 0:00:57]} 19. Kg2 {[%emt 0:03:00]} b4 {[%emt 0:04:35]} 20. Bd2 {[%emt 0:03:29]} Qd7 {[%emt 0:03:40]} 21. Rh1 {[%emt 0:09:11]} a4 {[%emt 0:05:03]} 22. cxb4 {[%emt 0:03:22]} a3 {[%emt 0:01:12]} 23. b3 {[%emt 0:00:09]} cxb3 {[%emt 0:04:27]} 24. Bxb3 {[%emt 0:00:11]} Qb5 {[%emt 0:00:27]} 25. Rb1 {[%emt 0:08:17]} Rec8 {[%emt 0:04:11]} 26. h5 {[%emt 0:01:12]} gxh5 {[%emt 0:02:34]} 27. Rxh5 {[%emt 0:00:05]} Qd3 {[%emt 0:00:53]} 28. Bg5 {[%emt 0:10:04]} Qxd1 {[%emt 0:02:43]} 29. Bxd1 {[%emt 0:00:04]} Bxg5 {[%emt 0:00:23]} 30. Nxg5 {[%emt 0:00:02]} Na4 {[%emt 0:01:50]} 31. Bg4 {[%emt 0:06:17]} Rc2 {[%emt 0:07:03]} 32. Nxh7 {[%emt 0:03:15]} Nc3 {[%emt 0:11:22]} 33. Rbh1 {[%emt 0:00:52]} Nxh7 {[%emt 0:00:40]} 34. Bxe6+ {[%emt 0:01:54]} Kf8 {[%emt 0:00:02]} 35. Rxh7 {[%emt 0:00:07]} Ra6 {[%emt 0:00:06]} 36. Bc8 {[%emt 0:03:05]} Ra7 {[%emt 0:03:19]} 37. Rh8+ {[%emt 0:01:08]} Kf7 {[%emt 0:00:06]} 38. e6+ {[%emt 0:01:52]} Kg6 {[%emt 0:01:24]} 39. Bd7 {[%emt 0:00:04]} Re2 {[%emt 0:00:04]} 40. Rf8 {[%emt 0:00:27]} Kg5 {[%emt 0:00:30]} 41. Rh7 {[%emt 0:00:50]} Kg6 {[%emt 0:00:39]} 42. Rhh8 {[%emt 0:00:26]} Kg5 {[%emt 0:00:12]} 43. Kh3 {[%emt 0:00:26]} 1-0

[Event "12th KIIT International 2019"]
[Site "Odisha"]
[Date "2019.06.07"]
[Round "10.4"]
[White "Konguvel, Ponnuswamy"]
[Black "Turov, Maxim"]
[Result "1/2-1/2"]
[ECO "B19"]
[WhiteElo "2293"]
[BlackElo "2579"]
[Annotator "ChessBase"]
[PlyCount "56"]
[EventDate "2019.05.31"]
[EventType "swiss"]
[EventCountry "IND"]
[SourceTitle "playchess.com"]
[Source "ChessBase"]
[SourceQuality "1"]
[TimeControl "5400+30"]

1. e4 {[%emt 0:00:00]} c6 {[%emt 0:00:00]} 2. d4 {[%emt 0:00:00]} d5 {[%emt 0:00:00]} 3. Nc3 {[%emt 0:00:02]} dxe4 {[%emt 0:00:00]} 4. Nxe4 {[%emt 0:00:05]} Bf5 {[%emt 0:00:00]} 5. Ng3 {[%emt 0:00:13]} Bg6 {[%emt 0:00:00]} 6. h4 {[%emt 0:00:12]} h6 {[%emt 0:00:02]} 7. Nf3 {[%emt 0:00:09]} Nd7 {[%emt 0:00:06]} 8. h5 {[%emt 0:00:28]} Bh7 {[%emt 0:00:06]} 9. Bd3 {[%emt 0:00:06]} Bxd3 {[%emt 0:00:07]} 10. Qxd3 {[%emt 0:00:04]} e6 {[%emt 0:00:06]} 11. Bd2 {[%emt 0:00:25]} Ngf6 {[%emt 0:00:08]} 12. O-O-O {[%emt 0:00:21]} Bd6 {[%emt 0:00:13]} 13. Ne4 {[%emt 0:02:11]} Nxe4 {[%emt 0:02:29]} 14. Qxe4 {[%emt 0:00:05]} Nf6 {[%emt 0:00:03]} 15. Qe2 {[%emt 0:01:07]} Bc7 {[%emt 0:00:05]} 16. Rh4 {[%emt 0:09:15]} Qe7 {[%emt 0:02:10]} 17. c4 {[%emt 0:07:40]} O-O-O {[%emt 0:02:56]} 18. Bc3 {[%emt 0:00:07]} Rhe8 {[%emt 0:06:30]} 19. Rhh1 {[%emt 0:03:13]} Ng4 {[%emt 0:02:27]} 20. Kb1 {[%emt 0:02:44]} Qf6 {[%emt 0:12:44]} 21. Rde1 {[%emt 0:17:01]} Qf5+ {[%emt 0:06:55]} 22. Ka1 {[%emt 0:01:40]} Bd6 {[%emt 0:18:55]} 23. g3 {[%emt 0:07:31]} Bc7 {[%emt 0:09:41]} 24. Nh4 {[%emt 0:11:08]} Qxh5 {[%emt 0:01:00]} 25. Ng2 {[%emt 0:01:01]} Qf5 {[%emt 0:02:02]} 26. Nh4 {[%emt 0:00:33]} Qh5 {[%emt 0:00:53]} 27. Ng2 {[%emt 0:00:07]} Qf5 {[%emt 0:00:21]} 28. Nh4 {[%emt 0:00:08]} Qh5 {[%emt 0:00:13]} 1/2-1/2

[Event "12th KIIT International 2019"]
[Site "Odisha"]
[Date "2019.06.07"]
[Round "10.5"]
[White "Burmakin, Vladimir"]
[Black "Saurabh Anand"]
[Result "1-0"]
[ECO "A12"]
[WhiteElo "2526"]
[BlackElo "2351"]
[Annotator "ChessBase"]
[PlyCount "68"]
[EventDate "2019.05.31"]
[EventType "swiss"]
[EventCountry "IND"]
[SourceTitle "playchess.com"]
[Source "ChessBase"]
[SourceQuality "1"]
[TimeControl "5400+30"]

1. Nf3 {[%emt 0:00:00]} d5 {[%emt 0:00:00]} 2. g3 {[%emt 0:00:00]} Bg4 {[%emt 0:00:09]} 3. Bg2 {[%emt 0:00:00]} Nd7 {[%emt 0:00:07]} 4. h3 {[%emt 0:01:25]} Bh5 {[%emt 0:00:11]} 5. d3 {[%emt 0:01:43]} e6 {[%emt 0:00:41]} 6. O-O {[%emt 0:02:00]} Ngf6 {[%emt 0:00:07]} 7. c4 {[%emt 0:01:20]} c6 {[%emt 0:00:28]} 8. b3 {[%emt 0:01:14]} Bd6 {[%emt 0:00:18]} 9. Bb2 {[%emt 0:00:20]} O-O {[%emt 0:00:24]} 10. Nc3 {[%emt 0:00:15]} Qe7 {[%emt 0:01:38]} 11. a3 {[%emt 0:00:14]} a6 {[%emt 0:09:20]} 12. Qd2 {[%emt 0:03:06]} Rfc8 {[%emt 0:01:15]} 13. Rfc1 {[%emt 0:00:09]} b5 {[%emt 0:11:31]} 14. b4 {[%emt 0:01:11]} dxc4 {[%emt 0:01:58]} 15. dxc4 {[%emt 0:00:05]} Bxf3 {[%emt 0:01:14]} 16. exf3 {[%emt 0:02:35]} bxc4 {[%emt 0:01:03]} 17. Na4 {[%emt 0:05:49]} c5 {[%emt 0:04:58]} 18. Bxf6 {[%emt 0:17:53]} gxf6 {[%emt 0:09:48]} 19. Rxc4 {[%emt 0:11:15]} cxb4 {[%emt 0:01:37]} 20. Rd4 {[%emt 0:09:27]} Nc5 {[%emt 0:01:24]} 21. Nb6 {[%emt 0:03:19]} Be5 {[%emt 0:04:06]} 22. axb4 {[%emt 0:03:50]} Nb3 {[%emt 0:15:38]} 23. Nxc8 {[%emt 0:01:11]} Qf8 {[%emt 0:00:11]} 24. Rg4+ {[%emt 0:06:22]} Kh8 {[%emt 0:00:07]} 25. Qd7 {[%emt 0:00:19]} Nxa1 {[%emt 0:00:51]} 26. Rc4 {[%emt 0:00:39]} Rb8 {[%emt 0:01:35]} 27. f4 {[%emt 0:00:24]} Bb2 {[%emt 0:00:16]} 28. Bb7 {[%emt 0:01:03]} f5 {[%emt 0:01:17]} 29. Qc7 {[%emt 0:01:48]} Rxb7 {[%emt 0:00:35]} 30. Qxb7 {[%emt 0:00:06]} Bf6 {[%emt 0:00:29]} 31. Qd7 {[%emt 0:00:44]} Nb3 {[%emt 0:00:23]} 32. Nd6 {[%emt 0:00:21]} Kg7 {[%emt 0:00:15]} 33. Ne8+ {[%emt 0:01:57]} Kg6 {[%emt 0:00:04]} 34. Nxf6 {[%emt 0:00:25]} Kxf6 {[%emt 0:00:03]} 1-0

[Event "12th KIIT International 2019"]
[Site "Odisha"]
[Date "2019.06.07"]
[Round "10.6"]
[White "Hari Madhavan N B"]
[Black "Debashis, Das"]
[Result "1/2-1/2"]
[ECO "D05"]
[WhiteElo "2093"]
[BlackElo "2544"]
[Annotator "ChessBase"]
[PlyCount "111"]
[EventDate "2019.05.31"]
[EventType "swiss"]
[EventCountry "IND"]
[SourceTitle "playchess.com"]
[Source "ChessBase"]
[SourceQuality "1"]
[TimeControl "5400+30"]

1. d4 {[%emt 0:00:00]} c5 {[%emt 0:01:23]} 2. c3 {[%emt 0:00:00]} e6 {[%emt 0:00:57]} 3. Nf3 {[%emt 0:00:00]} Nf6 {[%emt 0:00:06]} 4. e3 {[%emt 0:00:06]} b6 {[%emt 0:03:39]} 5. Bd3 {[%emt 0:00:58]} Bb7 {[%emt 0:00:05]} 6. Nbd2 {[%emt 0:00:32]} d5 {[%emt 0:00:20]} 7. O-O {[%emt 0:01:57]} Nbd7 {[%emt 0:00:12]} 8. Qe2 {[%emt 0:02:16]} Be7 {[%emt 0:00:50]} 9. e4 {[%emt 0:02:51]} dxe4 {[%emt 0:01:29]} 10. Nxe4 {[%emt 0:00:12]} O-O {[%emt 0:00:14]} 11. dxc5 {[%emt 0:07:13]} Nxc5 {[%emt 0:00:53]} 12. Nxc5 {[%emt 0:00:10]} Bxc5 {[%emt 0:00:27]} 13. Bg5 {[%emt 0:00:45]} h6 {[%emt 0:02:00]} 14. Bxf6 {[%emt 0:08:51]} Qxf6 {[%emt 0:00:09]} 15. Be4 {[%emt 0:00:20]} Qe7 {[%emt 0:01:07]} 16. Rad1 {[%emt 0:00:18]} Rad8 {[%emt 0:00:27]} 17. Bxb7 {[%emt 0:17:01]} Qxb7 {[%emt 0:00:06]} 18. h3 {[%emt 0:00:54]} Be7 {[%emt 0:06:15]} 19. Rxd8 {[%emt 0:02:03]} Rxd8 {[%emt 0:00:32]} 20. Rd1 {[%emt 0:00:38]} Rd5 {[%emt 0:04:03]} 21. Rd2 {[%emt 0:07:46]} Qd7 {[%emt 0:03:01]} 22. Qd1 {[%emt 0:02:01]} Rxd2 {[%emt 0:00:29]} 23. Qxd2 {[%emt 0:00:06]} Qc7 {[%emt 0:01:58]} 24. Qd3 {[%emt 0:05:18]} Qf4 {[%emt 0:02:26]} 25. Qd2 {[%emt 0:01:46]} Qc7 {[%emt 0:00:41]} 26. Qd3 {[%emt 0:03:35]} Bf6 {[%emt 0:09:41]} 27. Qe4 {[%emt 0:07:46]} g6 {[%emt 0:00:09]} 28. g3 {[%emt 0:00:56]} Kg7 {[%emt 0:02:49]} 29. h4 {[%emt 0:07:34]} Qd6 {[%emt 0:01:52]} 30. Kg2 Qd1 {[%emt 0:03:06]} 31. a3 {[%emt 0:06:38]} Qb3 {[%emt 0:01:18]} 32. Qe2 {[%emt 0:00:44]} Qd5 {[%emt 0:00:35]} 33. Kg1 {[%emt 0:00:41]} Qf5 {[%emt 0:07:22]} 34. Nh2 {[%emt 0:01:32]} h5 {[%emt 0:02:23]} 35. Nf1 {[%emt 0:00:33]} Be7 {[%emt 0:02:14]} 36. Ne3 {[%emt 0:01:16]} Qe5 {[%emt 0:00:42]} 37. Qd3 {[%emt 0:00:56]} Bc5 {[%emt 0:00:15]} 38. Nd1 {[%emt 0:00:05]} Qd6 {[%emt 0:03:23]} 39. Qxd6 {[%emt 0:00:48]} Bxd6 {[%emt 0:00:06]} 40. Kg2 {[%emt 0:02:02]} Kf6 {[%emt 0:06:30]} 41. Kf3 {[%emt 0:01:01]} g5 {[%emt 0:03:01]} 42. hxg5+ {[%emt 0:00:49]} Kxg5 {[%emt 0:00:05]} 43. Ne3 {[%emt 0:00:38]} f5 {[%emt 0:00:05]} 44. c4 {[%emt 0:02:43]} a5 {[%emt 0:07:19]} 45. Nd1 {[%emt 0:01:07]} Kf6 {[%emt 0:05:04]} 46. Nc3 {[%emt 0:01:07]} Ke5 {[%emt 0:02:42]} 47. Na4 {[%emt 0:00:20]} Kd4 {[%emt 0:09:30]} 48. Nxb6 {[%emt 0:00:34]} Bc7 {[%emt 0:00:18]} 49. Nd7 {[%emt 0:01:48]} Kxc4 {[%emt 0:00:14]} 50. b4 {[%emt 0:00:09]} axb4 {[%emt 0:01:00]} 51. axb4 {[%emt 0:00:07]} Kxb4 {[%emt 0:00:11]} 52. Nf8 {[%emt 0:00:27]} e5 {[%emt 0:00:46]} 53. Ne6 {[%emt 0:00:18]} Bd6 {[%emt 0:00:05]} 54. Ng7 {[%emt 0:00:10]} f4 {[%emt 0:00:06]} 55. Nxh5 {[%emt 0:00:10]} fxg3 {[%emt 0:00:06]} 56. Nxg3 {[%emt 0:00:05]} 1/2-1/2

[Event "12th KIIT International 2019"]
[Site "Odisha"]
[Date "2019.06.07"]
[Round "10.7"]
[White "Kostenko, Petr"]
[Black "Roy, Prantik"]
[Result "1-0"]
[ECO "B13"]
[WhiteElo "2473"]
[BlackElo "2365"]
[Annotator "ChessBase"]
[PlyCount "165"]
[EventDate "2019.05.31"]
[EventType "swiss"]
[EventCountry "IND"]
[SourceTitle "playchess.com"]
[Source "ChessBase"]
[SourceQuality "1"]
[TimeControl "5400+30"]

1. e4 {[%emt 0:00:00]} c6 {[%emt 0:00:00]} 2. d4 {[%emt 0:00:00]} d5 {[%emt 0:00:00]} 3. exd5 {[%emt 0:00:00]} cxd5 {[%emt 0:00:03]} 4. Bd3 {[%emt 0:00:00]} Nc6 {[%emt 0:00:10]} 5. c3 {[%emt 0:00:00]} Qc7 {[%emt 0:00:11]} 6. h3 {[%emt 0:01:11]} g6 {[%emt 0:01:54]} 7. Ne2 {[%emt 0:01:38]} Bf5 {[%emt 0:02:26]} 8. Bf4 {[%emt 0:01:52]} Qd7 {[%emt 0:00:19]} 9. Nc1 {[%emt 0:00:06]} Bh6 {[%emt 0:03:23]} 10. Qd2 {[%emt 0:05:23]} Bxf4 {[%emt 0:10:27]} 11. Qxf4 {[%emt 0:00:06]} Nf6 {[%emt 0:00:44]} 12. Nd2 {[%emt 0:01:29]} Qe6+ {[%emt 0:03:20]} 13. Kd1 {[%emt 0:04:05]} Bxd3 {[%emt 0:00:13]} 14. Nxd3 {[%emt 0:00:04]} Qf5 {[%emt 0:00:15]} 15. Qe3 {[%emt 0:02:09]} h5 {[%emt 0:08:32]} 16. a4 {[%emt 0:01:53]} b6 {[%emt 0:04:02]} 17. Re1 {[%emt 0:00:51]} e6 {[%emt 0:01:24]} 18. Ne5 {[%emt 0:11:58]} Rc8 {[%emt 0:05:28]} 19. Nd3 {[%emt 0:09:59]} h4 {[%emt 0:03:22]} 20. Re2 {[%emt 0:01:27]} g5 {[%emt 0:04:49]} 21. Rc1 {[%emt 0:08:35]} Kf8 {[%emt 0:03:54]} 22. Qf3 {[%emt 0:02:25]} Qxf3 {[%emt 0:03:46]} 23. Nxf3 {[%emt 0:00:03]} Ne4 {[%emt 0:00:37]} 24. Nd2 {[%emt 0:00:05]} Nd6 {[%emt 0:02:21]} 25. Ne5 {[%emt 0:00:20]} Nxe5 {[%emt 0:01:07]} 26. Rxe5 {[%emt 0:00:05]} Rg8 {[%emt 0:00:11]} 27. Kc2 {[%emt 0:00:26]} g4 {[%emt 0:03:11]} 28. Rh5 {[%emt 0:02:37]} gxh3 {[%emt 0:01:46]} 29. gxh3 {[%emt 0:00:03]} Rg2 {[%emt 0:01:48]} 30. Rf1 {[%emt 0:02:46]} Ke7 {[%emt 0:05:47]} 31. Kd3 {[%emt 0:00:21]} Nf5 {[%emt 0:02:39]} 32. Nf3 {[%emt 0:00:10]} Kf6 {[%emt 0:00:45]} 33. b3 {[%emt 0:01:15]} Rd8 {[%emt 0:07:01]} 34. c4 {[%emt 0:16:31]} a5 {[%emt 0:00:45]} 35. Kc3 {[%emt 0:02:49]} Rc8 {[%emt 0:02:29]} 36. Ne5 {[%emt 0:03:48]} Rd8 {[%emt 0:01:00]} 37. Rh7 {[%emt 0:00:37]} Rg7 {[%emt 0:00:24]} 38. Rxg7 {[%emt 0:00:53]} Kxg7 {[%emt 0:00:13]} 39. Rg1+ {[%emt 0:00:09]} Kf6 {[%emt 0:01:05]} 40. Rg4 {[%emt 0:00:09]} Rd6 {[%emt 0:06:53]} 41. Nf3 {[%emt 0:01:03]} Rc6 {[%emt 0:00:41]} 42. Kd3 {[%emt 0:00:21]} dxc4+ {[%emt 0:00:22]} 43. bxc4 {[%emt 0:00:04]} Rc8 {[%emt 0:00:33]} 44. Ne5 {[%emt 0:03:33]} Rd8 {[%emt 0:02:11]} 45. Kc3 {[%emt 0:00:54]} Rd6 {[%emt 0:00:23]} 46. Nf3 {[%emt 0:01:10]} Rc6 {[%emt 0:00:14]} 47. Rf4 {[%emt 0:00:17]} Ke7 {[%emt 0:01:15]} 48. d5 {[%emt 0:09:10]} Rc5 {[%emt 0:02:34]} 49. Kd3 {[%emt 0:01:51]} Nd6 {[%emt 0:01:16]} 50. dxe6 {[%emt 0:00:15]} fxe6 {[%emt 0:00:09]} 51. Rxh4 {[%emt 0:00:24]} Rf5 {[%emt 0:00:39]} 52. Rh7+ {[%emt 0:00:58]} Ke8 {[%emt 0:00:40]} 53. Nd4 {[%emt 0:00:37]} Rxf2 {[%emt 0:00:08]} 54. Nxe6 {[%emt 0:00:05]} Ra2 {[%emt 0:00:14]} 55. Nc7+ {[%emt 0:00:22]} Kd8 {[%emt 0:01:42]} 56. Nd5 {[%emt 0:00:05]} Nc8 {[%emt 0:01:49]} 57. Kd4 {[%emt 0:00:23]} Rd2+ {[%emt 0:00:43]} 58. Kc3 {[%emt 0:00:25]} Rh2 {[%emt 0:00:55]} 59. h4 {[%emt 0:00:12]} Rh3+ {[%emt 0:00:24]} 60. Kd4 {[%emt 0:00:09]} Nd6 {[%emt 0:00:34]} 61. Nxb6 {[%emt 0:02:28]} Rxh4+ {[%emt 0:00:44]} 62. Rxh4 {[%emt 0:00:03]} Nf5+ {[%emt 0:00:05]} 63. Kc5 {[%emt 0:00:08]} Nxh4 {[%emt 0:00:04]} 64. Kb5 {[%emt 0:00:08]} Kc7 {[%emt 0:00:17]} 65. Nd5+ {[%emt 0:00:09]} Kd6 {[%emt 0:00:15]} 66. Ne3 {[%emt 0:00:17]} Nf3 {[%emt 0:00:22]} 67. c5+ {[%emt 0:00:22]} Kd7 {[%emt 0:02:13]} 68. Nc4 {[%emt 0:01:28]} Kc7 {[%emt 0:00:43]} 69. Nxa5 {[%emt 0:00:18]} Nd4+ {[%emt 0:00:35]} 70. Kc4 {[%emt 0:00:05]} Nf5 {[%emt 0:00:16]} 71. Nb3 {[%emt 0:00:12]} Ne3+ {[%emt 0:00:21]} 72. Kd3 {[%emt 0:00:16]} Nf5 {[%emt 0:00:38]} 73. Nd4 {[%emt 0:00:05]} Ne7 {[%emt 0:00:32]} 74. Kc4 {[%emt 0:00:04]} Ng6 {[%emt 0:00:16]} 75. Kb5 {[%emt 0:00:16]} Nf4 {[%emt 0:00:36]} 76. a5 {[%emt 0:00:12]} Kb7 {[%emt 0:00:37]} 77. Nc2 {[%emt 0:00:43]} Ne6 {[%emt 0:00:14]} 78. Nb4 {[%emt 0:00:33]} Kc7 {[%emt 0:00:33]} 79. Nd5+ {[%emt 0:00:21]} Kb7 {[%emt 0:00:09]} 80. c6+ {[%emt 0:01:32]} Ka7 {[%emt 0:00:32]} 81. c7 {[%emt 0:00:34]} Nd4+ {[%emt 0:00:35]} 82. Ka4 {[%emt 0:00:25]} Kb7 {[%emt 0:00:31]} 83. a6+ {[%emt 0:00:12]} 1-0

[Event "12th KIIT International 2019"]
[Site "Odisha"]
[Date "2019.06.07"]
[Round "10.9"]
[White "Shyaamnikhil P"]
[Black "Viani Antonio Dcunha"]
[Result "1-0"]
[ECO "E60"]
[WhiteElo "2434"]
[BlackElo "2362"]
[Annotator "ChessBase"]
[PlyCount "117"]
[EventDate "2019.05.31"]
[EventType "swiss"]
[EventCountry "IND"]
[SourceTitle "playchess.com"]
[Source "ChessBase"]
[SourceQuality "1"]
[TimeControl "5400+30"]

1. Nf3 {[%emt 0:01:13]} Nf6 {[%emt 0:00:22]} 2. g3 {[%emt 0:00:38]} g6 {[%emt 0:00:21]} 3. Bg2 {[%emt 0:01:49]} Bg7 {[%emt 0:00:41]} 4. O-O {[%emt 0:00:11]} O-O {[%emt 0:00:16]} 5. d4 {[%emt 0:00:32]} d6 {[%emt 0:00:42]} 6. b3 {[%emt 0:00:12]} c5 {[%emt 0:05:47]} 7. c4 {[%emt 0:02:30]} Nc6 {[%emt 0:01:48]} 8. Bb2 {[%emt 0:00:10]} Bf5 {[%emt 0:03:11]} 9. d5 {[%emt 0:04:35]} Na5 {[%emt 0:01:05]} 10. Nfd2 {[%emt 0:00:18]} Qd7 {[%emt 0:10:11]} 11. Nc3 {[%emt 0:06:17]} a6 {[%emt 0:03:47]} 12. e4 {[%emt 0:07:43]} Bh3 {[%emt 0:01:07]} 13. Qc2 {[%emt 0:08:20]} b5 {[%emt 0:03:23]} 14. Nd1 {[%emt 0:00:39]} Bxg2 {[%emt 0:10:54]} 15. Kxg2 {[%emt 0:00:35]} bxc4 {[%emt 0:02:01]} 16. bxc4 {[%emt 0:00:36]} Qc7 {[%emt 0:00:57]} 17. Rb1 {[%emt 0:03:28]} Rab8 {[%emt 0:03:39]} 18. Ne3 {[%emt 0:00:54]} Nd7 {[%emt 0:06:34]} 19. Bxg7 {[%emt 0:00:41]} Kxg7 {[%emt 0:00:09]} 20. Qc3+ {[%emt 0:00:45]} Kg8 {[%emt 0:03:31]} 21. f4 {[%emt 0:02:15]} f6 {[%emt 0:11:36]} 22. h4 {[%emt 0:05:25]} Rxb1 {[%emt 0:03:13]} 23. Rxb1 {[%emt 0:00:08]} Rb8 {[%emt 0:01:46]} 24. Rxb8+ {[%emt 0:05:57]} Nxb8 {[%emt 0:00:09]} 25. g4 {[%emt 0:03:12]} Nd7 {[%emt 0:02:43]} 26. g5 {[%emt 0:01:19]} Nb7 {[%emt 0:03:30]} 27. a3 {[%emt 0:01:55]} Qa5 {[%emt 0:01:07]} 28. Qb2 {[%emt 0:00:12]} Qb6 {[%emt 0:00:50]} 29. Qc3 {[%emt 0:00:33]} Qa5 {[%emt 0:00:08]} 30. Qb2 {[%emt 0:00:30]} Qb6 {[%emt 0:00:10]} 31. Qc1 {[%emt 0:05:52]} Kf7 {[%emt 0:02:46]} 32. Kf3 {[%emt 0:00:16]} Na5 {[%emt 0:00:40]} 33. Qc3 {[%emt 0:00:14]} Nb7 {[%emt 0:00:46]} 34. Ke2 {[%emt 0:01:55]} Nd8 {[%emt 0:02:14]} 35. Kd1 {[%emt 0:01:09]} Kg7 {[%emt 0:01:32]} 36. Kc2 {[%emt 0:02:00]} Nb7 {[%emt 0:01:35]} 37. Nf3 {[%emt 0:04:34]} Qa5 {[%emt 0:01:37]} 38. Qb3 {[%emt 0:04:52]} Nd8 {[%emt 0:00:48]} 39. Nd1 {[%emt 0:05:34]} Nf7 {[%emt 0:02:44]} 40. Nb2 {[%emt 0:00:34]} Qc7 {[%emt 0:01:16]} 41. Qc3 {[%emt 0:00:17]} Nf8 {[%emt 0:01:31]} 42. Nd3 {[%emt 0:01:21]} Qd7 {[%emt 0:02:35]} 43. e5 {[%emt 0:00:58]} Qg4 {[%emt 0:01:44]} 44. exf6+ {[%emt 0:00:10]} exf6 {[%emt 0:00:06]} 45. Qxf6+ {[%emt 0:00:07]} Kg8 {[%emt 0:00:05]} 46. Qxf7+ {[%emt 0:00:11]} Kxf7 {[%emt 0:00:08]} 47. Nfe5+ {[%emt 0:00:03]} dxe5 {[%emt 0:00:13]} 48. Nxe5+ {[%emt 0:00:04]} Ke7 {[%emt 0:00:06]} 49. Nxg4 {[%emt 0:00:04]} Nd7 {[%emt 0:00:10]} 50. Kd3 {[%emt 0:01:54]} Nb6 {[%emt 0:00:12]} 51. Nf6 {[%emt 0:00:20]} h5 {[%emt 0:00:08]} 52. Ne4 {[%emt 0:00:07]} Nd7 {[%emt 0:00:15]} 53. Kc3 {[%emt 0:01:35]} Kd8 {[%emt 0:00:13]} 54. Nd2 {[%emt 0:01:42]} Kc7 {[%emt 0:00:23]} 55. Nf3 {[%emt 0:00:08]} Kd6 {[%emt 0:00:16]} 56. Kd3 {[%emt 0:00:07]} a5 {[%emt 0:00:17]} 57. Ke4 {[%emt 0:00:19]} a4 {[%emt 0:00:19]} 58. Ne5 {[%emt 0:00:07]} Nb6 {[%emt 0:00:08]} 59. Kd3 {[%emt 0:00:07]} 1-0

[Event "12th KIIT International 2019"]
[Site "Odisha"]
[Date "2019.06.07"]
[Round "10.10"]
[White "Malakhatko, Vadim"]
[Black "Nguyen, Phuoc Tam"]
[Result "1-0"]
[ECO "E05"]
[WhiteElo "2505"]
[BlackElo "2238"]
[Annotator "ChessBase"]
[PlyCount "73"]
[EventDate "2019.05.31"]
[EventType "swiss"]
[EventCountry "IND"]
[SourceTitle "playchess.com"]
[Source "ChessBase"]
[SourceQuality "1"]
[TimeControl "5400+30"]

1. Nf3 {[%emt 0:00:00]} Nf6 {[%emt 0:00:00]} 2. c4 {[%emt 0:00:00]} e6 {[%emt 0:00:00]} 3. g3 {[%emt 0:00:00]} d5 {[%emt 0:00:05]} 4. Bg2 {[%emt 0:00:00]} Be7 {[%emt 0:00:03]} 5. O-O {[%emt 0:00:07]} O-O {[%emt 0:00:04]} 6. d4 {[%emt 0:00:07]} dxc4 {[%emt 0:00:07]} 7. Qc2 {[%emt 0:00:30]} a6 {[%emt 0:00:07]} 8. Qxc4 {[%emt 0:00:07]} b5 {[%emt 0:00:06]} 9. Qc2 {[%emt 0:00:07]} Bb7 {[%emt 0:00:04]} 10. Bd2 {[%emt 0:00:08]} Nbd7 {[%emt 0:00:10]} 11. b4 {[%emt 0:08:10]} Bd6 {[%emt 0:07:32]} 12. a3 {[%emt 0:03:57]} Be4 {[%emt 0:03:10]} 13. Qc1 {[%emt 0:04:41]} e5 {[%emt 0:04:59]} 14. Bc3 {[%emt 0:06:21]} exd4 {[%emt 0:06:56]} 15. Bxd4 {[%emt 0:00:17]} Qe7 {[%emt 0:00:27]} 16. Nc3 {[%emt 0:02:41]} Bb7 {[%emt 0:03:38]} 17. e4 {[%emt 0:00:47]} c5 {[%emt 0:07:40]} 18. bxc5 {[%emt 0:17:21]} Bxc5 {[%emt 0:01:17]} 19. Qb2 {[%emt 0:08:15]} Bxd4 {[%emt 0:02:07]} 20. Nxd4 {[%emt 0:00:05]} Qe5 {[%emt 0:00:25]} 21. Rad1 {[%emt 0:02:34]} Rac8 {[%emt 0:02:32]} 22. Rfe1 {[%emt 0:00:36]} Qc5 {[%emt 0:06:14]} 23. Nd5 {[%emt 0:04:43]} Bxd5 {[%emt 0:19:50]} 24. exd5 {[%emt 0:00:08]} Rfe8 {[%emt 0:01:28]} 25. Rxe8+ {[%emt 0:04:50]} Rxe8 {[%emt 0:00:25]} 26. Rc1 {[%emt 0:00:07]} Qa7 {[%emt 0:05:32]} 27. d6 {[%emt 0:05:41]} Ne5 {[%emt 0:10:39]} 28. Rc7 {[%emt 0:11:02]} Qb6 {[%emt 0:00:09]} 29. Nf5 {[%emt 0:00:11]} Kf8 {[%emt 0:12:55]} 30. h3 {[%emt 0:14:06]} h6 {[%emt 0:05:39]} 31. Qc3 {[%emt 0:04:29]} Nc4 {[%emt 0:00:35]} 32. Bd5 {[%emt 0:02:21]} Ne5 {[%emt 0:00:26]} 33. d7 {[%emt 0:01:14]} Nfxd7 {[%emt 0:00:35]} 34. Rxd7 {[%emt 0:00:07]} Qf6 {[%emt 0:00:19]} 35. Qc5+ {[%emt 0:00:43]} Kg8 {[%emt 0:00:01]} 36. Re7 {[%emt 0:00:36]} Rd8 {[%emt 0:00:01]} 37. Rxe5 {[%emt 0:00:16]} 1-0